Cogmind - Beta 16 @@@ ROGUE MODE // 2025.12.21 @ 00:02:09 Player: mephiles96 Result: Destroyed by S-27 Virus with Autogun Performance ------------- Evolutions (4) 2000 Regions Visited (11) 2200 Robots Destroyed (78) 390 Value Destroyed (2904) 2904 Prototype IDs (27) 540 Alien Tech Used (0) 0 Bonus (729) 729 TOTAL SCORE: 8763 Bonus ------- Follower Combat Kills 229 Entered Garrisons 200 Aligned with FarCom 300 Cogmind --------- Core Integrity 0/850 Matter 323/500 Energy 83/100 System Corruption 3% Temperature Cool (0) Movement Walking (120) Location -6/Garrison Parts ------- > --- POWER (1) -------- (None) > --- PROPULSION (4) --- Carbon-fiber Leg Carbon-fiber Leg VTOL Module > --- UTILITY (7) ------ Improved Heat Sink Advanced Heat Sink Large Storage Unit High-capacity Matter Pod Improved Target Analyzer > --- WEAPON (3) ------- Heavy Laser > --- INVENTORY (15) --- Light Nuclear Core Light Nuclear Core Improved Deuterium Engine Improved Deuterium Engine Carbon-fiber Leg Experimental Sensor Array IFF Parser Cloak of Protection EM Shield Relay Coupler [NC] (28) Relay Coupler [Swarmer] (22) Heavy Laser Autogun Remote Datajack Makeshift Spear Peak State ------------ > --- POWER ------------ Light Angular Momentum Engine > --- PROPULSION ------- Carbon-fiber Leg Carbon-fiber Leg Carbon-fiber Leg Improved Titanium Leg > --- UTILITY ---------- Large Storage Unit IFF Parser Advanced Terrain Scan Processor Improved Light Armor Plating Improved Medium Armor Plating Hacking Suite Component Analysis Suite > --- WEAPON ----------- Minigun High-powered Shotgun Coil Gun > --- INVENTORY -------- Light Nuclear Core Light Angular Momentum Engine Carbon-fiber Leg High-capacity Matter Pod Experimental Sensor Array Cloak of Protection Improved Medium Armor Plating EM Shield Gauss Rifle Heavy Assault Cannon Rocket Launcher Remote Datajack Makeshift Spear [Rating: 58] Favorites ----------- Power Light Nuclear Core Engine Ion Engine Power Core Light Nuclear Core Propulsion Aluminum Leg Leg Aluminum Leg Wheel Armored Huge Wheel Hover Unit Antigrav System Flight Unit VTOL Module Utility Large Storage Unit Device Improved Terrain Scanner Storage Large Storage Unit Processor Terrain Scan Processor Hackware Hacking Suite Protection Improved Medium Armor Plating Weapon Assault Rifle Energy Gun Heavy Laser Ballistic Gun Assault Rifle Ballistic Cannon Improved Light Cannon Launcher Rocket Launcher Build | -11 -10 -10 -9 -9 -9 -8 -8 -8 -7 -6 -6 ------- Run | Yrd Mat Min Mat Min Exi Min Mat Sto Fac Fac Gar Slots Evolved 8 | . . . 2 . . . 2 . 2 2 . Power . | . . . . . . . . . . . . Propulsion 2 | . . . 1 . . . 1 . . . . Utility 5 | . . . 1 . . . 1 . 2 1 . Weapon 1 | . . . . . . . . . . 1 . Parts Attached 100 | 7 1 9 6 8 . 2 6 14 11 8 28 Power 12 | 1 . 2 . 1 . 1 1 2 1 2 1 Engine 7 | 1 . . . 1 . 1 . 2 . 1 1 Core 5 | . . 2 . . . . 1 . 1 1 . Reactor . | . . . . . . . . . . . . Propulsion 37 | 2 . 4 1 4 . . 1 8 5 1 11 Treads . | . . . . . . . . . . . . Leg 30 | 2 . 4 1 4 . . 1 7 3 1 7 Wheel 2 | . . . . . . . . . 2 . . Hover 2 | . . . . . . . . . . . 2 Flight 3 | . . . . . . . . 1 . . 2 Utility 24 | 2 1 2 1 1 . 1 2 . 4 3 7 Device 10 | 1 . 1 . . . 1 1 . 1 2 3 Storage 4 | 1 1 1 . . . . . . . . 1 Processor 3 | . . . . . . . 1 . 1 . 1 Hackware 2 | . . . 1 . . . . . 1 . . Protection 5 | . . . . 1 . . . . 1 1 2 Artifact . | . . . . . . . . . . . . Weapon 27 | 2 . 1 4 2 . . 2 4 1 2 9 Energy Gun 7 | . . . . . . . 2 1 . . 4 Energy Cannon . | . . . . . . . . . . . . Ballistic Gun 15 | 2 . . 3 1 . . . 3 1 2 3 Ballistic Cannon 2 | . . . 1 . . . . . . . 1 Launcher 3 | . . 1 . 1 . . . . . . 1 Special Weapon . | . . . . . . . . . . . . Impact Weapon . | . . . . . . . . . . . . Slashing Weapon . | . . . . . . . . . . . . Piercing Weapon . | . . . . . . . . . . . . Special Melee Weapon . | . . . . . . . . . . . . Unidentified Prototypes 3 | . . . . . . . . 3 . . . Corrupted Parts 2 | . . . . . . . . 2 . . . System Corruption 6 | . . . . . . . . 6 . . . Parts Lost 36 | . . . . 1 . . . . 4 1 30 Power 5 | . . . . 1 . . . . 1 . 3 Propulsion 9 | . . . . . . . . . 1 1 7 Utility 10 | . . . . . . . . . 1 . 9 Weapon 12 | . . . . . . . . . 1 . 11 Highest Loss Streak 12 | . . . . 1 . . . . 4 1 12 To Critical Strikes . | . . . . . . . . . . . . Average Backups 12 | 6 7 10 12 14 15 14 13 13 13 13 12 Power . | . 1 1 1 . . . . . . 1 2 Propulsion 2 | 3 1 2 2 3 2 2 1 1 1 2 1 Utility 6 | . 3 4 5 7 9 8 7 6 5 5 5 Weapon 3 | 1 1 1 3 4 4 4 5 5 6 4 2 Tool/Special . | . . . . . . . . . . . . Unused Backups 35 | 3 4 4 1 1 2 1 . 2 3 . 14 Power 5 | . . 1 . . . . . . . . 4 Propulsion 10 | 3 3 1 . . . . . . 1 . 2 Utility 12 | . 1 . 1 . 2 1 . 2 . . 5 Weapon 8 | . . 2 . 1 . . . . 2 . 3 Tool/Special . | . . . . . . . . . . . . Average Slot Usage (%) 95 | . 100 100 99 100 100 100 99 98 91 98 71 Engine 4 | . 14 . . 10 11 11 4 . 6 . 4 Core 6 | . . 13 11 . . . 4 8 . 5 1 Leg 29 | . 28 28 33 33 33 33 36 35 28 25 12 Device 12 | . 14 14 20 8 11 11 9 8 11 12 11 Storage 11 | . 14 14 11 11 11 11 9 9 7 6 11 Processor 2 | . . . . . . . 8 9 7 6 3 Hackware 5 | . . . 1 11 11 11 9 9 9 13 3 Ballistic Gun 18 | . 28 27 16 12 11 19 15 16 15 20 9 Launcher 1 | . . . . 7 11 2 . . . . . Peak Build Rating 58 | 7 8 13 18 19 16 18 24 32 46 56 58 Average Rating 22 | 5 7 12 16 15 15 17 23 28 41 54 39 On Entrance 20 | . 7 8 11 18 15 16 18 23 32 41 56 Avg Prop Armor Cover (%) 2 | . . . . . . . . 5 . . 2 Naked Turns . | . . . . . . . . . . . . Heaviest Build 52 | 14 19 29 34 37 32 32 32 36 37 49 52 Greatest Support 65 | 20 20 20 30 30 30 30 40 50 65 65 65 Greatest Overweight (x) 15 | . . 1 1 1 1 1 . 1 11 . 15 Average Overweight (x) . | . . . . 1 1 1 . . . . 1 Largest Inventory Capacity 15 | 8 10 15 15 15 15 15 15 15 15 15 15 Average Capacity 14 | 7 8 14 15 15 15 15 15 15 15 15 15 Most Carried 15 | 8 9 11 15 15 15 15 15 15 15 15 15 Average Carried 13 | 6 8 10 13 14 15 14 14 14 14 14 12 Final Capacity 15 | 8 10 15 15 15 15 15 15 15 15 15 15 Final Carried 15 | 7 9 11 15 15 15 15 15 15 15 15 15 Scrap Suit Usage (%) 6 | . . . . . . . . . 68 . . Parts Cannibalized 1 | . . . . . . . . . 1 . . Class Distribution -------------------- 58% | Scavenger-Mutant 23% | Scavenger-Skirmisher 8% | Mutant 6% | Hacker-Skirmisher Dominant Class ---------------- Mutant | -10/Materials Scavenger-Mutant | -10/Mines Scavenger-Mutant | -9/Materials Scavenger-Mutant | -9/Mines Scavenger-Mutant | -9/Exiles Scavenger-Mutant | -8/Mines Scavenger-Skirmisher | -8/Materials Scavenger-Skirmisher | -8/Storage Scavenger-Skirmisher | -7/Factory Hacker-Skirmisher | -6/Factory Scavenger-Skirmisher | -6/Garrison Resources | -11 -10 -10 -9 -9 -9 -8 -8 -8 -7 -6 -6 ----------- Run | Yrd Mat Min Mat Min Exi Min Mat Sto Fac Fac Gar Matter Collected 3119 | 386 43 124 315 317 . 104 120 440 469 65 736 Remotely . | . . . . . . . . . . . . Salvage Created 2843 | 147 104 166 339 236 . 106 165 126 432 65 957 Parts 161 | 13 5 15 24 8 . 6 8 9 25 3 45 Haulers Intercepted . | . . . . . . . . . . . . Recyclers Shooed . | . . . . . . . . . . . . Parts Field Recycled . | . . . . . . . . . . . . Retrieved Matter . | . . . . . . . . . . . . Parts Self-Destructed . | . . . . . . . . . . . . Prevented . | . . . . . . . . . . . . Parts Restored . | . . . . . . . . . . . . Kills | -11 -10 -10 -9 -9 -9 -8 -8 -8 -7 -6 -6 ------- Run | Yrd Mat Min Mat Min Exi Min Mat Sto Fac Fac Gar Combat Hostiles Destroyed 70 | . 2 7 11 10 . 3 3 1 8 2 23 Guns 40 | . 2 4 4 4 . . 3 1 8 2 12 Cannons 7 | . . . 3 1 . . . . . . 3 AOE 23 | . . 3 4 5 . 3 . . . . 8 Classes Destroyed 13 | 3 1 1 2 3 . 1 . . 2 . . Worker 2 | 2 . . . . . . . . . . . Builder 1 | . . . . 1 . . . . . . . Tunneler 5 | 2 . . . 1 . 2 . . . . . Recycler 4 | 1 . . 1 1 . . . . 1 . . Operator 2 | . . . 1 . . . . 1 . . . Swarmer 17 | . . 3 7 . . . . . . . 7 Grunt 30 | . 2 4 1 2 . 2 1 1 6 . 11 Brawler 1 | . . . . 1 . . . . . . . Duelist 4 | . . . . . . 1 . . . . 3 Sentry 7 | . . . 3 . . . 2 1 . 1 . Hunter 1 | . . . . . . . . . 1 . . Programmer 4 | . . . . . . . . . 1 1 2 Assembled 7 | . . . . 7 . . . . . . . Best Kill Streak 7 | 3 2 3 5 5 . 4 2 1 3 1 7 Combat Bots Only 7 | . 2 3 4 4 . 3 2 1 3 1 7 Max Kills in Single Turn 3 | 1 1 2 3 2 . 1 1 1 1 1 3 Gunslinging . | . . . . . . . . . . . . Exploded 3 | . . 2 3 2 . 1 . . . . 3 Melee . | . . . . . . . . . . . . Uniques/NPCs Destroyed . | . . . . . . . . . . . . Combat | -11 -10 -10 -9 -9 -9 -8 -8 -8 -7 -6 -6 -------- Run | Yrd Mat Min Mat Min Exi Min Mat Sto Fac Fac Gar Hostile Shots Fired 508 | . 10 23 38 31 . 8 14 8 69 42 265 Missed 138 | . 3 8 7 6 . 2 5 4 16 16 71 Hits 370 | . 7 15 31 25 . 6 9 4 53 26 194 Melee 15 | . . . . 5 . . . . . . 10 Projectile 355 | . 7 15 31 20 . 6 9 4 53 26 184 AOE 1 | . . . . . . . . . 1 . . Critical Strikes 15 | . . . 1 1 . . . . 3 . 10 Part Disruptions 1 | . . . . 1 . . . . . . . Damage Taken 6335 | . 112 187 333 394 . 95 128 126 845 291 3824 Core 1138 | . 33 47 40 53 . 16 . . 88 6 855 Absorbed by Shields . | . . . . . . . . . . . . Redirected to Shielding 9 | . . . . . . . . . . . 9 Regen/Repaired (Parts) 125 | . . . . . . . . 16 109 . . Core Remaining (%) 85 | 100 . 68 . . . 72 . 100 87 . . Volleys Fired 245 | 10 7 13 27 22 . 7 8 32 35 6 78 Largest 3 | 2 2 2 2 2 . 2 2 2 2 3 3 Hottest 128 | 40 40 50 56 56 . 53 90 51 51 80 128 Shots Fired 479 | 20 14 26 54 38 . 14 16 61 70 18 148 Gun 425 | 20 14 24 40 24 . 10 16 61 70 18 128 Cannon 32 | . . . 11 8 . . . . . . 13 Launcher 22 | . . 2 3 6 . 4 . . . . 7 Special . | . . . . . . . . . . . . Kinetic 421 | 20 14 24 51 32 . 10 10 61 70 18 111 Thermal 25 | . . . . . . . . . . . 25 Explosive 22 | . . 2 3 6 . 4 . . . . 7 Electromagnetic 11 | . . . . . . . 6 . . . 5 Robot Hit Streak 16 | 11 8 10 16 5 . 5 15 14 15 6 16 Robot Miss Streak 7 | 2 1 1 2 4 . 2 1 1 3 2 7 Penetration Max 1 | . . . . . . . . . 1 . . Secondary Targets 4 | . . . 2 . . . . . . . 2 Max Gunslinging Chain 1 | . . . 1 . . . . . . . 1 Shots Hit Robots 302 | 13 12 18 39 20 . 10 13 20 54 14 89 Core Hits 178 | 8 5 13 20 18 . 9 9 8 21 5 62 Critical Kills . | . . . . . . . . . . . . Critical Parts Destroyed 3 | . 1 . 1 . . . . . . . 1 Critical Strikes 6 | . 1 . 1 1 . . . 1 . . 2 Burn 1 | . . . . . . . . . . . 1 Destroy 4 | . 1 . 1 . . . . 1 . . 1 Blast 1 | . . . . 1 . . . . . . . Melee Attacks . | . . . . . . . . . . . . Impact . | . . . . . . . . . . . . Slashing . | . . . . . . . . . . . . Piercing . | . . . . . . . . . . . . Sneak Attacks . | . . . . . . . . . . . . Combat Hostiles . | . . . . . . . . . . . . Follow-up Attacks . | . . . . . . . . . . . . Damage Inflicted 7315 | 138 130 367 727 615 . 465 184 289 998 472 2930 Guns 4399 | 138 130 172 311 188 . 90 184 288 998 318 1582 Cannons 730 | . . . 193 144 . . . . . . 393 Explosions 2179 | . . 195 217 283 . 375 . . . 154 955 Melee . | . . . . . . . . . . . . Ramming 7 | . . . 6 . . . . 1 . . . Kinetic 4600 | 138 130 172 504 332 . 90 109 288 998 318 1521 Thermal 515 | . . . . . . . . . . 154 361 Explosive 2025 | . . 195 217 283 . 375 . . . . 955 Electromagnetic 168 | . . . . . . . 75 . . . 93 Impact . | . . . . . . . . . . . . Slashing . | . . . . . . . . . . . . Piercing . | . . . . . . . . . . . . Highest Corruption 6 | . . . . . . . . 6 . . 3 Average Corruption 4 | . . . . . . . . 5 . . 2 Corruption Purged . | . . . . . . . . . . . . Corruption Blocked . | . . . . . . . . . . . . Effects 25 | . . . . . . . . 13 . . 12 Message Errors 4 | . . . . . . . . 1 . . 3 Matter Fused 7 | . . . . . . . . 4 . . 3 Heat Flow Errors 5 | . . . . . . . . 3 . . 2 Energy Discharges 2 | . . . . . . . . 1 . . 1 Parts Rejected 1 | . . . . . . . . . . . 1 Data Loss (minor) 2 | . . . . . . . . 2 . . . Misfires 2 | . . . . . . . . 2 . . . Alerts 1 | . . . . . . . . . . . 1 Weapon Failures 1 | . . . . . . . . . . . 1 Overload Shots . | . . . . . . . . . . . . Overflow Damage 163 | . . 18 . . . . . . . 41 104 Projectiles 44 | . . . . . . . . . . . 44 Explosions 119 | . . 18 . . . . . . . 41 60 Melee . | . . . . . . . . . . . . Knockbacks 6 | . . . 1 1 . . . . . . 4 Impact . | . . . . . . . . . . . . Kinetic 6 | . . . 1 1 . . . . . . 4 Secondary . | . . . . . . . . . . . . Self-Inflicted Damage 418 | . . . 40 65 . . . . . 57 256 Shots 10 | . . . 1 2 . . . . . 1 6 Rammed . | . . . . . . . . . . . . Targets Rammed 2 | . . . 1 . . . . 1 . . . Kicked 2 | . . . 1 . . . . 1 . . . Crushed . | . . . . . . . . . . . . Highest Temperature 230 | . 18 21 5 55 . 12 30 230 99 38 229 Average Temperature 56 | . 9 8 3 33 . 6 15 105 57 21 71 Received Heat Transfer 1983 | . 60 81 42 196 . 54 54 27 468 54 947 Siege Activations . | . . . . . . . . . . . . Martial Activations . | . . . . . . . . . . . . Shielding Activations . | . . . . . . . . . . . . Robots Disrupted . | . . . . . . . . . . . . Combat Hostiles . | . . . . . . . . . . . . Robots Corrupted . | . . . . . . . . . . . . Combat Hostiles . | . . . . . . . . . . . . Parts Fried . | . . . . . . . . . . . . Impact Corruptions . | . . . . . . . . . . . . Robots Melted . | . . . . . . . . . . . . Combat Hostiles . | . . . . . . . . . . . . Parts Melted 1 | . . . . . . . . . . 1 . Heat Transferred 877 | . . . . . . . . . . 100 777 Parts Sabotaged . | . . . . . . . . . . . . Parts Stolen . | . . . . . . . . . . . . Parts Stripped . | . . . . . . . . . . . . Power Chain Reactions . | . . . . . . . . . . . . Alert | -11 -10 -10 -9 -9 -9 -8 -8 -8 -7 -6 -6 ------- Run | Yrd Mat Min Mat Min Exi Min Mat Sto Fac Fac Gar Maximum Alert Level 1 | . . . 1 . . . . . . . 1 Low Security (%) 89 | 100 100 100 86 100 . 100 100 100 100 100 20 Level 1 10 | . . . 13 . . . . . . . 79 Level 2 . | . . . . . . . . . . . . Level 3 . | . . . . . . . . . . . . Level 4 . | . . . . . . . . . . . . Level 5 . | . . . . . . . . . . . . High Security . | . . . . . . . . . . . . Max Security . | . . . . . . . . . . . . Peak Influence 390 | 10 50 78 235 103 . 89 60 151 44 71 390 Initial 48 | . . . . 48 . . . 3 14 18 23 Average 54 | 1 9 10 110 16 . 17 20 31 10 11 291 Influence Increases 2440 | 25 54 182 414 112 . 104 80 525 216 111 617 Destroy 0b10 Robot/C 1440 | . 40 140 220 60 . 60 60 200 160 40 460 Destroy 0b10 Robot/NC 80 | 25 . . 10 15 . 10 . 10 5 . 5 Destroy Leader 302 | . 10 30 50 10 . 10 20 72 40 20 40 Allied During Kill 114 | . . . . . . . . 112 2 . . Successful Hack 25 | . 4 . 3 . . . . 10 8 . . Disable Machine 180 | . . . 45 . . 15 . 90 . 30 . Anti-Garrison Action 50 | . . . . . . . . . . . 50 Destroy Structure 129 | . . 12 26 27 . 9 . 1 1 21 32 Lose Combat Pursuer 120 | . . . 60 . . . . 30 . . 30 Influence Decreases 2100 | 25 54 182 288 238 . 104 70 503 210 116 310 Entered New Map 133 | . . . . 78 . . . 7 18 20 10 Time Decay 1477 | 25 54 182 288 150 . 104 70 360 158 86 . Lost Part 350 | . . . . 10 . . . . 30 10 300 Lost Ally 99 | . . . . . . . . 95 4 . . Purge Threat 41 | . . . . . . . . 41 . . . Squads Dispatched 5 | . 1 . . . . . . . 3 1 . Investigation 2 | . . . . . . . . . 2 . . Extermination 2 | . . . . . . . . . 1 1 . Reinforcement 1 | . 1 . . . . . . . . . . Assault . | . . . . . . . . . . . . Garrison . | . . . . . . . . . . . . Intercept . | . . . . . . . . . . . . Searches Triggered . | . . . . . . . . . . . . Construction Impeded . | . . . . . . . . . . . . Haulers Reinforced . | . . . . . . . . . . . . Active Scanning Responses . | . . . . . . . . . . . . Cargo Convoy Interrupts . | . . . . . . . . . . . . Stealth | -11 -10 -10 -9 -9 -9 -8 -8 -8 -7 -6 -6 --------- Run | Yrd Mat Min Mat Min Exi Min Mat Sto Fac Fac Gar Distress Signals 6 | . 1 . 3 . . . . 2 . . . Communications Jammed . | . . . . . . . . . . . . Distress Signals . | . . . . . . . . . . . . Times Spotted 103 | . 4 7 21 9 . 3 3 12 13 2 29 Peak Tracking Total 8 | . 2 3 5 3 . 3 2 4 3 1 8 Tactical Retreats 4 | . . . 2 . . . . 1 . . 1 Traps | -11 -10 -10 -9 -9 -9 -8 -8 -8 -7 -6 -6 ------- Run | Yrd Mat Min Mat Min Exi Min Mat Sto Fac Fac Gar Traps Triggered 9 | . . . . . . . . 6 . . 3 Indirectly . | . . . . . . . . . . . . Trap Hack Attempts . | . . . . . . . . . . . . Triggered . | . . . . . . . . . . . . Disarmed 7 | . . . . . . . . 7 . . . Reprogrammed . | . . . . . . . . . . . . Reused . | . . . . . . . . . . . . Traps Extracted . | . . . . . . . . . . . . Installed . | . . . . . . . . . . . . Triggered . | . . . . . . . . . . . . Machines | -11 -10 -10 -9 -9 -9 -8 -8 -8 -7 -6 -6 ---------- Run | Yrd Mat Min Mat Min Exi Min Mat Sto Fac Fac Gar Machines Disabled 13 | . . . 3 . . 1 . 6 . 2 1 Max in Single Turn 2 | . . . 1 . . 1 . 1 . 2 1 Garrison Access 2 | . . . . . . . . 1 1 . . Garrison Relay 1 | . . . . . . . . . . . 1 Machines Repaired . | . . . . . . . . . . . . Machines Dismantled . | . . . . . . . . . . . . Machines Sabotaged . | . . . . . . . . . . . . Overloaded Fab Kills . | . . . . . . . . . . . . Hacking | -11 -10 -10 -9 -9 -9 -8 -8 -8 -7 -6 -6 --------- Run | Yrd Mat Min Mat Min Exi Min Mat Sto Fac Fac Gar Machines Accessed 28 | . 2 . 5 1 1 . 1 7 7 2 2 Terminals 20 | . 2 . 5 1 . . 1 5 3 1 2 Fabricators . | . . . . . . . . . . . . Repair Stations 3 | . . . . . . . . 1 2 . . Recycling Units 1 | . . . . . . . . . 1 . . Scanalyzers . | . . . . . . . . . . . . Garrison Access 3 | . . . . . . . . 1 1 1 . Total Hacks 51 | . 7 . 8 2 1 . 2 11 15 2 3 Successful 30 | . 4 . 4 . 1 . 2 10 6 2 1 Failed 21 | . 3 . 4 2 . . . 1 9 . 2 Catastrophic 8 | . 1 . 1 1 . . . 1 4 . . Database Lockouts . | . . . . . . . . . . . . Manual 31 | . 6 . 6 2 1 . 1 6 9 . . Terminals 40 | . 7 . 8 2 . . 2 8 9 1 3 Fabricators . | . . . . . . . . . . . . Repair Stations 6 | . . . . . . . . 2 4 . . Recycling Units 1 | . . . . . . . . . 1 . . Scanalyzers . | . . . . . . . . . . . . Garrison Access 3 | . . . . . . . . 1 1 1 . Terminal Hacks 14 | . 2 . 2 . 1 . 2 4 1 1 1 Record 1 | . . . 1 . . . . . . . . Robot Analysis 1 | . . . 1 . . . . . . . . Open Door 1 | . . . . . . . . 1 . . . Open DSF 1 | . . . . . . . . . . 1 . Level Access Points 1 | . . . . . . . . . 1 . . Alert Level 1 | . . . . . . . 1 . . . . Unreport Threat 2 | . . . . . . . 1 1 . . . Disarm Traps 2 | . . . . . . . . 2 . . . Patrol Status 1 | . 1 . . . . . . . . . . Zone Layout 1 | . 1 . . . . . . . . . . Patrol Navigation 1 | . . . . . . . . . . . 1 Proto ID Catalog 1 | . . . . . 1 . . . . . . Fabricator Hacks . | . . . . . . . . . . . . Repair Station Hacks 5 | . . . . . . . . 2 3 . . Scan Component 3 | . . . . . . . . 1 2 . . Repair 2 | . . . . . . . . 1 1 . . Recycling Unit Hacks . | . . . . . . . . . . . . Scanalyzer . | . . . . . . . . . . . . Garrison Access Hacks 3 | . . . . . . . . 1 1 1 . Unlock Access 1 | . . . . . . . . . . 1 . Seal Access 2 | . . . . . . . . 1 1 . . Unauthorized Hacks 8 | . 2 . 2 . . . . 3 1 . . Terminals 8 | . 2 . 2 . . . . 3 1 . . Botnet 8 | . 2 . 2 . . . . 3 1 . . Fabricators . | . . . . . . . . . . . . Repair Stations . | . . . . . . . . . . . . Recycling Units . | . . . . . . . . . . . . Scanalyzers . | . . . . . . . . . . . . Garrison Access . | . . . . . . . . . . . . Data Cores Recovered 2 | . . . 1 . . . . 1 . . . Used 1 | . . . . . . . . 1 . . . Hacking Detections 22 | . 2 . 5 1 . . 1 5 5 1 2 Full Trace Events 2 | . . . . . . . . . 2 . . Feedback Events . | . . . . . . . . . . . . Feedback Blocked . | . . . . . . . . . . . . Robot Schematics Acquired . | . . . . . . . . . . . . Robots Built . | . . . . . . . . . . . . Authchips . | . . . . . . . . . . . . Time . | . . . . . . . . . . . . Total Robot Build Rating . | . . . . . . . . . . . . Part Schematics Acquired . | . . . . . . . . . . . . Parts Built . | . . . . . . . . . . . . Authchips . | . . . . . . . . . . . . Time . | . . . . . . . . . . . . Total Part Build Rating . | . . . . . . . . . . . . Part Studies Acquired . | . . . . . . . . . . . . Parts Repaired 2 | . . . . . . . . 1 1 . . Time 76 | . . . . . . . . 38 38 . . Parts Recycled . | . . . . . . . . . . . . Recycled Matter . | . . . . . . . . . . . . Retrieved Matter . | . . . . . . . . . . . . Retrieved Components . | . . . . . . . . . . . . Parts Scanalyzed . | . . . . . . . . . . . . Part Schematics Acquired . | . . . . . . . . . . . . Parts Damaged . | . . . . . . . . . . . . Bothacking | -11 -10 -10 -9 -9 -9 -8 -8 -8 -7 -6 -6 ------------ Run | Yrd Mat Min Mat Min Exi Min Mat Sto Fac Fac Gar Used RIF Installer . | . . . . . . . . . . . . Robots Hacked . | . . . . . . . . . . . . Non-combat . | . . . . . . . . . . . . Combat . | . . . . . . . . . . . . Robot Hacks Applied . | . . . . . . . . . . . . Relay Couplers Released 7 | . . . . . . . . . . . 7 Machine Destruction 4 | . . . . . . . . . . . 4 Programmers 3 | . . . . . . . . . . . 3 Fabnet Peak Effective % . | . . . . . . . . . . . . Robots Rewired . | . . . . . . . . . . . . Allies Hacked . | . . . . . . . . . . . . Hacks Repelled . | . . . . . . . . . . . . Allies | -11 -10 -10 -9 -9 -9 -8 -8 -8 -7 -6 -6 -------- Run | Yrd Mat Min Mat Min Exi Min Mat Sto Fac Fac Gar Total Allies 10 | . . . . . . . . 10 . . . Largest Group 10 | . . . . . . . . 10 2 . . Highest-Rated Group 173 | . . . . . . . . 173 32 . . Highest-Rated Ally 29 | . . . . . . . . 29 16 . . Total Orders 1 | . . . . . . . . 1 . . . FOLLOW 1 | . . . . . . . . 1 . . . Ally Attacks 51 | . . . . . . . . 48 3 . . Total Damage 497 | . . . . . . . . 484 13 . . Kills 10 | . . . . . . . . 10 . . . Allies Corrupted . | . . . . . . . . . . . . Allies Melted . | . . . . . . . . . . . . Intel | -11 -10 -10 -9 -9 -9 -8 -8 -8 -7 -6 -6 ------- Run | Yrd Mat Min Mat Min Exi Min Mat Sto Fac Fac Gar Active Infowar (turns) 8062 | 30 273 2390 703 663 829 531 201 1142 718 384 198 IFF 582 | . . . . . . . . . . 384 198 Terrain 4083 | . . 1427 596 . . . 200 1142 718 . . Seismic 3993 | 30 273 963 703 663 829 531 1 . . . . Robot Analysis Total 1 | . . . 1 . . . . . . . . Derelict Logs Recovered 3 | . . 2 . 1 . . . . . . . Drone Launches . | . . . . . . . . . . . . Drone Recoveries . | . . . . . . . . . . . . Exploration | -11 -10 -10 -9 -9 -9 -8 -8 -8 -7 -6 -6 ------------- Run | Yrd Mat Min Mat Min Exi Min Mat Sto Fac Fac Gar Turns Passed 9389 | 205 273 2390 703 846 829 531 201 1180 853 400 978 Spaces Moved 4498 | 134 180 746 393 398 436 260 120 764 445 269 353 Core 27 | 12 . . . . . . . . 2 . 13 Treads . | . . . . . . . . . . . . Legs 4456 | 122 180 746 393 398 436 260 120 764 438 269 330 Wheels 5 | . . . . . . . . . 5 . . Hover 10 | . . . . . . . . . . . 10 Flight . | . . . . . . . . . . . . Fastest Speed 50 | 50 120 120 120 190 190 190 120 120 100 122 116 Average Speed 156 | 113 120 183 146 190 190 190 120 120 122 122 195 Slowest Speed 800 | 120 120 190 190 190 190 190 120 190 600 123 800 Overloaded Moves . | . . . . . . . . . . . . Propulsion Burnouts . | . . . . . . . . . . . . Robots Hopped . | . . . . . . . . . . . . Potential Cave-ins . | . . . . . . . . . . . . Cave-ins Triggered . | . . . . . . . . . . . . Exploration Rate (%) 44 | 5 33 101 38 65 90 49 12 83 11 7 36 Regions Visited 11 Branch Regions 5 Pre-discovered Areas 1 | . . 1 . . . . . . . . . Known Exits Taken 4 | . . . 1 . . . 1 . 1 1 . Unknown Exits Taken 7 | 1 1 1 . 1 1 1 . 1 . . . Scrap Searched 3 | . . 1 . 1 . 1 . . . . . Spaces Dug . | . . . . . . . . . . . . Terrain Destroyed 143 | . . 12 24 47 . 14 . . . 19 27 Melee . | . . . . . . . . . . . . Projectile 3 | . . . . . . . . . . . 3 AOE 140 | . . 12 24 47 . 14 . . . 19 24 Terrain Rammed . | . . . . . . . . . . . . Walls Destroyed . | . . . . . . . . . . . . Machines Disabled . | . . . . . . . . . . . . Actions | -11 -10 -10 -9 -9 -9 -8 -8 -8 -7 -6 -6 --------- Run | Yrd Mat Min Mat Min Exi Min Mat Sto Fac Fac Gar Total 6440 | 170 227 1746 472 448 439 285 162 971 685 328 507 Wait 1351 | . 24 960 26 5 . 8 16 106 154 37 15 Move 4487 | 133 179 745 392 397 435 259 119 763 444 268 353 Hop . | . . . . . . . . . . . . Pick Up 92 | 17 9 6 9 4 2 3 5 10 13 5 9 Fast Attach 45 | . . . . 1 . . . 13 9 1 21 Attach 28 | 7 . . 2 1 . . 3 . 5 3 7 Detach . | . . . . . . . . . . . . Swap 77 | . 1 13 9 12 . 3 6 14 7 4 8 Drop 95 | 3 7 9 6 6 2 5 5 24 18 4 6 Fire 245 | 10 7 13 27 22 . 7 8 32 35 6 78 Melee . | . . . . . . . . . . . . Ram . | . . . . . . . . . . . . Kick 2 | . . . 1 . . . . 1 . . . Crush . | . . . . . . . . . . . . Escape Stasis 18 | . . . . . . . . 8 . . 10 Rewire . | . . . . . . . . . . . . Trap . | . . . . . . . . . . . . Miscellaneous . | . . . . . . . . . . . . Route ------- -11/Scrapyard -10/Materials -10/Mines (discovered 3 exits: *Mat x2 / [*Sub]) -9/Materials (discovered 2 exits: *Mat / *Min) -9/Mines (discovered 2 exits: *Mat / *Exi) -9/Exiles (discovered 2 exits: [*Min x2]) -8/Mines -8/Materials -8/Storage -7/Factory (discovered 4 exits: *Fac x4) -6/Factory -6/Garrison (discovered 1 exit: [*Fac]) History --------- Turn | Location | Event 12 | -11/Scrapyard | Discovered new exit (range 15) 206 | -11/Scrapyard | Entered Materials 303 | -10/Materials | Build established: Mutant 443 | -10/Materials | Discovered new exit (range 14) 479 | -10/Materials | Entered Mines 483 | -10/Mines | Met a Derelict bent on vengeance 540 | -10/Mines | Found a damaged Exp. Sensor Array with a note attached 543 | -10/Mines | Found Prototype Device 607 | -10/Mines | Found DCF Scrap (14 items) 695 | -10/Mines | Learned location of Zion (-6) 821 | -10/Mines | Build established: Scavenger-Mutant 879 | -10/Mines | A weapon hastily lodged in a ceiling crevice suddenly fell to the ground 902 | -10/Mines | Learned 8 Materials zone layouts 928 | -10/Mines | Discovered new exit (range 2) 955 | -10/Mines | Discovered new exit (range 12) 2005 | -10/Mines | Discovered new exit (range 15) 2869 | -10/Mines | Entered Materials 2869 | -9/Materials | Evolved 2 slots: Propulsion x1, Utility x1 2870 | -9/Materials | Identified exit to Mines 3479 | -9/Materials | Discovered new exit (range 16) 3572 | -9/Materials | Entered Mines 3573 | -9/Mines | Assembled infested the area 4112 | -9/Mines | Received a Rocket Launcher from a helpful Derelict 4236 | -9/Mines | Discovered new exit (range 10) 4410 | -9/Mines | Deemed a non-threat by the Exiles lab entrance 4410 | -9/Mines | Discovered new exit (range 5) 4418 | -9/Mines | Entered Exiles 4447 | -9/Exiles | Discovered new exit (range 15) 4475 | -9/Exiles | Met 8R-AWN 4508 | -9/Exiles | Met EX-HEX 4563 | -9/Exiles | Met EX-BIN 4586 | -9/Exiles | Aligned with FarCom system 4588 | -9/Exiles | Given EX-Vault access code 4667 | -9/Exiles | Opened EX-Vault 4681 | -9/Exiles | Found Cloak of Protection 4724 | -9/Exiles | Warned to stay clear of 0b10 Research branches 4787 | -9/Exiles | Met EX-DEC 4900 | -9/Exiles | Visited The Gauntlet 5226 | -9/Exiles | Discovered new exit (range 11) 5247 | -9/Exiles | Left Exiles lab with Cloak of Protection 5247 | -9/Exiles | Entered Mines 5545 | -8/Mines | Found a Scrap Suit stashed away for nefarious purposes 5549 | -8/Mines | Found Scrap Suit 5763 | -8/Mines | Discovered new exit (range 9) 5778 | -8/Mines | Entered Materials 5778 | -8/Materials | Evolved 2 slots: Propulsion x1, Utility x1 5779 | -8/Materials | Identified exit to Storage 5979 | -8/Materials | Entered Storage 6082 | -8/Storage | Build established: Scavenger-Skirmisher 6088 | -8/Storage | Assisted by bots powering up and referring to "LRC-V3" 6277 | -8/Storage | Lost 4 allies 6808 | -8/Storage | Repaired Imp. Terrain Scanner 7141 | -8/Storage | Discovered new exit (range 15) 7159 | -8/Storage | Entered Factory 7159 | -7/Factory | Accompanied by 2 allies 7159 | -7/Factory | Evolved 2 slots: Utility x2 7360 | -7/Factory | Repaired Carbon-fiber Leg 7495 | -7/Factory | Identified exit to Factory 7928 | -7/Factory | Lost 4 parts (1p1n1u1w) 8012 | -7/Factory | Entered another Factory area 8012 | -6/Factory | Evolved 2 slots: Utility x1, Weapon x1 8051 | -6/Factory | Identified Exp. Sensor Array 8180 | -6/Factory | Identified exit to DSF 8213 | -6/Factory | Build established: Hacker-Skirmisher 8364 | -6/Factory | Identified exit to Garrison 8412 | -6/Factory | Entered Garrison 8476 | -6/Garrison | Triggered checkpoint 8546 | -6/Garrison | Garrison Relay disabled 8588 | -6/Garrison | Triggered checkpoint 8688 | -6/Garrison | Lost 12 parts (1p4n3u4w) 8689 | -6/Garrison | Destroyed 7 combat bots 8820 | -6/Garrison | Triggered checkpoint 8824 | -6/Garrison | Core integrity fell below 50% 8876 | -6/Garrison | Core integrity fell below 20% 8891 | -6/Garrison | Triggered checkpoint 8926 | -6/Garrison | Lost 11 parts (1p2n3u5w) 9000 | -6/Garrison | Triggered checkpoint 9244 | -6/Garrison | Discovered new exit (range 8) 9363 | -6/Garrison | Spotted B-75 Beast 9390 | -6/Garrison | Destroyed by S-27 Virus with Autogun Last Messages --------------- 09229_ Field strength at 70. 09230_ Field strength at 55. 09231_ Field strength at 40. 09232_ Field strength at 25. 09233_ Field strength at 10. 09234_ Stasis field depleted. 09244_ EXIT=FOUND 09258_ AFLAUOUXQ%HZ|XVY/L2MVL40HKGJ#S%TD 09312_ System corrupted: Matter fused (-8). 09341_ System corrupted: Energy discharge (-57). 09362_ Triggered Alarm Trap. 09362_ An alarm sounds. [Achievement: Let Me Out Of Here] 09367_ Autogun destroyed. 09372_ System corrupted: Matter fused (-6). 09374_ Autogun destroyed. 09374_ Adv. Heat Sink destroyed. 09381_ Lgt. Angular Momentum Engine destroyed. 09383_ S-27 Virus suffers critical hit (Burn). 09385_ Component Analysis Suite destroyed. Map ----- +----------------------------------------------------+ | ???????? ???????????????????????????????????????? | | ??????? ???????????????????????????????????????? | | ??????? "??????????????????????????????????????? | | ???????# #??????????????????????????????????????? | | ??###??# #??????????????????????????????????????? | | ?? ?? #??????????????????????????????????????? | | ?? ?? #??????????????????????????????????????? | | ??# #??# #??????????????????????????????????????? | | ??# #??# #??????????????????????????????????????? | | ??# #??# #??????????????????????????????????????? | | ??# #??# #??????????????????????????????????????? | | ### #### #######????????????????????????????????? | | # # ## # ##! = #????????????????????????????????? | | # ## # "#"! ############?????????????????????? | | ????????????????????? | | ????????????????????? | | ????????????????????? | | # # ## ## #######?????????????????????? | | ## #### ## ## ###?????????????????????????? | | ## # = = #?????????????????????????? | | ?#### = ! #?????????????????????????? | | ????# *#?????????????????????????? | | ????# + #??????????????????????? | | ????### "# #### ???????????????????????? | | ####### ## ## #############???????????????? | | @ s #???????????????? | | s s #???????????????? | | ####### ####+#####BB#???????????????? | | ??????##+### ######????????# #???????????????? | | ???????? #?# #?????????????# #???????????????? | | ???????? ??######?????????????#Y #???????????????? | | ???????? ?????????????????????# #???????????????? | | ???????? ?????????????????????# #???????????????? | | ??????????????????????????????# #???????????????? | | ??????????????????????????????# #???????????????? | | ??????????????????????????????# #???Y???????????? | | ?????????????????????????????? #???????????????? | | ?????????????????????????????## ???????????????? | | ??????????????????????????????# ??????????????? | | ??????????????????????????????# ?????????????? | | ??????????????????????????????#++###?????????????? | | ??????????????????????????????# #???????????????? | | ?????????????????????????????? #???????????????? | | ?????????????????????????????? ???????????????? | | ??????????????????????????????#++#???????????????? | | ??????????????????????????????? #???????????????? | | ??????????????????????????????? #???????????????? | | ???????????????????????????????##????????????????? | | ?????????????????????????????????????????????????? | | ?????????????????????????????????????????????????? | +----------------------------------------------------+ Best States ------------- Heat Dissipation 89 Energy Generation 18 Energy Capacity 250 Matter Stores 323 Matter Capacity 500 Sight Range 16 Terrain Scan Range 16 Terrain Scan Density 210 Armor Coverage 375 Core Shielding 20 Evasion (%) 55 Target Analysis 6 Offensive Hacking 10 Defensive Hacking 10 Item Schematics ----------------- None Robot Schematics ------------------ None Fabricated ------------ Nothing Repaired ---------- Imp. Terrain Scanner | 27% | -8/Storage Carbon-fiber Leg | 10% | -7/Factory Studied --------- None Alien Tech Used ----------------- None Achievements -------------- Deductive Reasoning Dynamic Key Let Me Out Of Here Omniscient Cartographer Challenges ------------ None Game ------ Seed StormPlatingLegs Manual? 0 Play Time 01:19:50 Cumulative 23.9 hours Start 2025.12.20 @ 15:10:40 End 2025.12.21 @ 00:02:09 Sessions 2 Manual Loads 0 Difficulty Rogue Special Mode None Game No. 29 Rogue 29 Adventurer 0 Explorer 0 Win Type - Total 0 Types 0/0/0/0/0/0/0/0/0/0 Lore% 13 Gallery% 25 Achievement% 20 Wizard Run 0 Options --------- Layout 2 ASCII 0 Keyboard 0 Movement Numpad Keybinds 1 Fullscreen 1 Font 24/Smallcaps Map View 50x44 Zoom Use 0% Tactical HUD 1 Map Filters NONE Filters NONE Steam 1 RUN: c18904e8-77f1-462d-a5bf-b0f5e5dbc1dd